Workbook

Sheet Info

Sheet STATUS
A1: 2013-11-17 | B1: Version issued for first comments
B2: Completed sheets have a green tab: input/output variables
B3: Uncompleted sheets have a yellow tab
B4: Red-tab sheets are kept "pro memoria"
B5: The calculation method has not been implemented yet.
B6: The input/output data should be complete
A8: 2014-02-16 | B8: Completed with single stage and multi stage calculation.
B9: Still to be checked and validated.

Sheet Product_descriptive_data
A1: Example of descriptive data. In a simple structure, this can be connected directly to the "method_input" sheet where this data is required. In this example spreadsheet the "Method_input" is linked to the "data_catalogue".
A6: Product descriptive data (qualitative)
A8: B.1.1.1 Heater type
A9: 5 | B9: LRH_TYPE | C9: =INDEX(C11:C21,A9) -> LRH_TYPE_AIR_MODUALL
A11: Overhead luminous radiant heater | C11: LRH_TYPE_LUM
A12: Overhead radiant tube heater unflued | C12: LRH_TYPE_RADNOFLUE
A13: Overhead radiant tube heater flued | C13: LRH_TYPE_RADFLUE
A14: Air heater, ON-OFF | C14: LRH_TYPE_AIR_ONOFF
A15: Air heater modulating output and combustion air | C15: LRH_TYPE_AIR_MODUALL
A16: Air heater modulating output and not combustion air | C16: LRH_TYPE_AIR_MODUGAS
A17: Example n°1 | C17: LRH_TYPE_EX1
A18: Example n°2 | C18: LRH_TYPE_EX2
A19: Example n°3 | C19: LRH_TYPE_EX3
A20: Example n°4 | C20: LRH_TYPE_EX4
A21: Last type | C21: LRH_TYPE_LAST
A24: B.1.1.2 Heater use
A25: 1 | B25: LRH_USE | C25: =INDEX(C27:C30,A25) -> LRH_USE_H
A27: Heating | C27: LRH_USE_H
A28: Domestic hot water | B28: Not applicable | C28: LRH_USE_W
A29: Cooling | B29: Not applicable | C29: LRH_USE_C
A30: All | B30: Not applicable | C30: LRH_USE_ALL
A33: B.1.1.3 Heater fuel
A34: 1 | B34: LRH_FUEL | C34: =INDEX(C36:C39,A34) -> LRH_FUEL_GAS
A36: Gas | C36: LRH_FUEL_GAS
A37: LPG | C37: LRH_FUEL_LPG
A38: Oil | C38: LRH_FUEL_OIL
A39: Biomass | C39: LRH_FUEL_BM
A42: B.1.1.4 Burner power control type
A43: 3 | B43: LRH_CTRL_POW | C43: =INDEX(C45:C47,A43) -> LRH_CTRL_POW_MODUL
A45: Single stage control (ON-OFF) | C45: LRH_CTRL_POW_ONOFF
A46: Multistage (stepped) control | C46: LRH_CTRL_POW_STEP
A47: Modulating control | C47: LRH_CTRL_POW_MODUL
A50: B.1.1.5 Condensing
A51: 1 | B51: LRH_COND | C51: =INDEX(C53:C54,A51) -> LRH_COND_YES
A53: Condensing heater | B53: YES | C53: =$B$51&"_"&B53 -> LRH_COND_YES
A54: Non condensing heater | B54: NO | C54: =$B$51&"_"&B54 -> LRH_COND_NO
A57: B.1.1.6 Pilot flame
A58: 2 | B58: LRH_PILOT | C58: =INDEX(C60:C61,A58) -> LRH_PILOT_NO
A60: Heater with pilot flame | C60: LRH_PILOT_YES
A61: Heater without pilot flame | C61: LRH_PILOT_NO
A64: B.1.1.7 Ventilation requirement
A65: 3 | B65: LRH_VENT | C65: =INDEX(C67:C69,A65) -> LRH_VENT_NO
A67: Type A heater | C67: LRH_VENT_YES
A68: Type A heater, with room ventilation interlock | C68: LRH_VENT_INTERLOCK
A69: Not a type A heater, no heated room ventilation | C69: LRH_VENT_NO

Sheet Product_tech_data
A1: EXAMPLE OF A SHEET WITH DEFAULT INPUT Create here a simulation of each default data formula given in annex A of the standard. Optionally connect the selected values to the detailed input data selection sheet (detailed input)
A5: 6.3.1.2.2 Generator combustion power at full load; | B5: Фlrh,comb,Pn | C5: kW | D5: =42*3 -> 126
A6: 6.3.1.2.2 Generator combustion power at minimum load; | B6: Фlrh,comb,Pmin | C6: kW | D6: =+D5*0.5 -> 63
A9: 6.3.1.2.3 Heat losses to the flue with burner on | B9: αlrh;ch;ON | C9: % | D9: =INDEX(C18:C26,A12) -> 4 | G9: after 2005
A10: 6.3.1.2.4 Correction factor for heat losses to the flue with burner on | B10: flrh;corr;ch;ON | C10: % | D10: =INDEX(D18:D26,A12) -> 0.18 | G10: 1990 - 2005
A11: 6.3.1.2.5 Test temperature for heat losses to the flue with burner on | B11: ϑlrh;air;test;ON | C11: °C | D11: =INDEX(E18:E26,A12) -> 20 | G11: before 1990
A12: 8
A13: 1
A15: Data table A10 | F15: after 2005 | G15: 1990 - 2005 | H15: before 1990 | J15: after 2005 | K15: 1990 - 2005 | L15: before 1990
A16: Data | D16: flrh,corr,ch,on | E16: ϑlrh,gen,air,test | F16: αlrh,ch,on | G16: αlrh,ch,on | H16: αlrh,ch,on | J16: αlrh,ch,on | K16: αlrh,ch,on | L16: αlrh,ch,on
A17: Unit | D17: - | E17: °C | F17: % | G17: % | H17: % | J17: % | K17: % | L17: %
A18: Overhead luminous radiant heater | C18: =INDEX(F18:H18,1,$A$13) -> 0 | D18: 0 | E18: 20 | F18: 0 | G18: 0 | H18: 0 | I18: =INDEX(J18:L18,1,$A$13) -> 0 | J18: 0 | K18: 0 | L18: 0
A19: Overhead radiant tube heater unflued | C19: 0 | D19: 0 | E19: 20 | F19: 0 | G19: 0 | H19: 0 | I19: 0 | J19: 0 | K19: 0 | L19: 0
A20: Overhead radiant tube heater flued | C20: 10 | D20: 0.25 | E20: 20 | F20: 10 | G20: 13 | H20: 16 | I20: 8 | J20: 8 | K20: 10 | L20: 13
A21: Air heater with natural draught burner | C21: 13 | D21: 0.18 | E21: 20 | F21: 13 | G21: 15 | H21: 18 | I21: 6 | J21: 6 | K21: 8 | L21: 10
A22: Air heater with forced draught burner | C22: 10 | D22: 0.18 | E22: 20 | F22: 10 | G22: 13 | H22: 16 | I22: 12 | J22: 12 | K22: 14 | L22: n.A.
A23: Air heater modulating output | C23: 8 | D23: 0.18 | E23: 20 | F23: 8 | G23: 10 | H23: n.A. | I23: 4 | J23: 4 | K23: n.A. | L23: n.A
A24: Condensing air heater | C24: 6 | D24: 0.18 | E24: 20 | F24: 6 | G24: n.A. | H24: n.A. | I24: 6 | J24: 6 | K24: n.A. | L24: n.A.
A25: Measured, special case | C25: 4 | D25: 0.18 | E25: 20 | F25: 4 | G25: =+F25 -> 4 | H25: =+G25 -> 4 | I25: 3 | J25: 3 | K25: =+J25 -> 3 | L25: =+K25 -> 3
A26: Last case | C26: 10 | D26: 0.18 | E26: 20 | F26: 10 | G26: 0 | H26: 0 | I26: 10 | J26: 10 | K26: 0 | L26: 0
A29: 6.3.1.2.3 Heat losses to the flue with burner on at minimum power | B29: αlrh;ch;ON | C29: % | D29: =INDEX(I18:I26,A12) -> 3
A33: AUXILAIRY ENERGY DATA
A34: 4
A35: 1
A36: Known value of auxiliary power of equipment related to the burner | B36: Φlrh;aux;br;known | C36: W | D36: 500
A37: Known value of auxiliary power of equipment after the burner | B37: Φlrh;aux;blw;known | C37: W | D37: 800
A39: Data table
A40: Data | C40: nlrh,ch,on | D40: flrh,aux,blw | E40: flrh,aux,br
A41: Unit | C41: - | D41: % | E41: %
A42: Overhead luminous radiant heater (unflued) | C42: 0 | D42: 0 | E42: 0.18
A43: Overhead radiant tube heater <=60kW (see NOTE 3) | C43: 0.1 | D43: 0 | E43: 0.25
A44: Overhead radiant tube heater > 60kW (see NOTE 4) | C44: 0.15 | D44: 2 | E44: 0.3
A45: Air heater (centrifugal blowing) | C45: 0.1 | D45: 0 | E45: 1.7
A46: Air heater (axial blowing) | C46: 0.1 | D46: 0 | E46: 0.9
A47: Measured, special case | C47: 0.1 | D47: 0 | E47: 0.9
A48: Last case | C48: 0.1 | D48: 0 | E48: 0.9
A49: Selected values | D49: =INDEX(D42:D48,A34) -> 0 | E49: =INDEX(E42:E48,A34) -> 1.7
A51: Default value of auxiliary power of equipment related to the burner | B51: Φlrh;aux;br;def | C51: W | D51: =+D49*D5*10 -> 0
A52: Default value of auxiliary power of equipment after the burner | B52: Φlrh;aux;blw;def | C52: W | D52: =+E49*D5*10 -> 2142
A54: 6.3.1.2.6 Load factor exponent | B54: nlrh;ch;ON | D54: =INDEX(C42:C48,A34) -> 0.1
A55: 6.3.1.2.7 Auxiliary power of equipment related to the burner | B55: Φlrh;aux;br | C55: W | D55: =IF(A35=1,D36,D51) -> 500 | J55: Known value of auxiliary power
A56: 6.3.1.2.8 Auxiliary power of equipment after the burner | B56: Φlrh;aux;blw | C56: W | D56: =IF(A35=1,D37,D52) -> 800 | J56: Default value of auxilairy power
A59: 6.3.1.2.9 Losses through the generator envelope | B59: αlrh;env | C59: % | D59: =+C71-D71*LOG(D5) -> 1.60167392
A60: 2
A61: Data table AXX
A62: Data | C62: clrh;1 | D62: clrh;2
A63: Unit | C63: % | D63: %
A64: Well insulated, high efficiency new appliance | C64: 1.72 | D64: 0.44
A65: Well insulated and maintained | C65: 3.45 | D65: 0.88
A66: Old unit with average insulation | C66: 6.9 | D66: 1.76
A67: Old unit, poor insulation | C67: 8.36 | D67: 2.2
A68: No insulation | C68: 10.35 | D68: 2.64
A69: Last option in the table | C69: 0 | D69: 0
A70: Known value | B70: 2.5 | C70: =+B70 -> 2.5 | D70: 0
A71: Selected values | C71: =INDEX(C64:C70,$A$60) -> 3.45 | D71: =INDEX(D64:D70,$A$60) -> 0.88
A74: 6.3.1.2.10 Pilot flame losses | B74: αlrh,plt | C74: % | D74: =INDEX(B79:B83,A75) -> 0
A75: 1
A76: Data table AXX
A77: Data | B77: αlrh,plt
A78: Unit | B78: %
A79: Heater without permanent pilot flame | B79: 0
A80: Heater with permanent pilot flame, default value | B80: 2
A81: Measured value | B81: 1.5
A82: Manufacturer data | B82: 0.7
A83: Last option | B83: 0
A86: 6.3.1.2.11 Combustion efficiency of condensing heaters | B86: ηlrh,comb | C86: % | D86: =INDEX(B92:B97,A88) -> 99
A87: 6.3.1.2.11 Combustion efficiency of condensing heaters at minimum power | B87: ηlrh,comb,Pmin | C87: % | D87: =INDEX(C92:C97,A88) -> 106
A88: 4
A89: Data table AXX
A90: Data | B90: ηlrh,comb | C90: ηlrh,comb,Pmin
A91: Unit | B91: % | C91: %
A92: On-Off appliances | B92: 104 | C92: n.a.
A93: Multi-stage or modulating appliances with modulated combustion air flow | B93: 94 | C93: 104
A94: Multi-stage or modulating appliances without modulated combustion air flow | B94: 102 | C94: 90
A95: Measured value | B95: 99 | C95: 106
A96: Manufacturer data | B96: 104 | C96: 106
A97: Last option | B97: 90 | C97: 90
A136: generator output at full load;
A137: generator efficiency at full load;
A138: generator output at intermediate load;
A139: generator efficiency at intermediate load;
A140: stand-by heat loss at test temperature difference Dθi,test;
A141: power consumption of auxiliary devices at full load;
A142: power consumption of auxiliary devices at intermediate load;
A143: stand-by power consumption of auxiliary devices;
A144: minimum operating boiler temperature.
A145: Recoverable fraction of stand-by losses
A147: correction factor of full-load efficiency;
A148: correction factor of intermediate load efficiency;
A150: generator average water temperature at test conditions for full load;
A151: generator average water temperature at test conditions for intermediate load;
A152: difference between mean boiler temperature and test room temperature in test conditions;
A154: part of the auxiliary energy recovered
A155: part of the nominal electrical power not transmitted to the distribution sub-system

Sheet Process_design_data
A1: Example of process design data. In a simple structure, this can be connected directly to the "method_input" sheet where this data is required. In this example spreadsheet the "Method input" is linked to the detailed input.
A4: 6.3.1.2.9 Auxiliary energy recovery factor | B4: klrh,aux,rh | D4: =INDEX(C10:C12,A5) -> 0.8
A5: 2
A7: Data table
A8: Data | C8: klrh,aux,rh
A9: Unit | C9: -
A10: Heater located within the heated space | C10: 1
A11: Heater located outside the heated space | C11: 0.8
A12: Last case | C12: 0.5
A15: A.2.2 correction factor of envelope losses | B15: klrh,env | D15: =INDEX(C21:C26,A16) -> 0.7
A16: 3
A18: Data table
A19: Data | C19: klrh,aux,rh
A20: Unit | C20: -
A21: Heater installed within the heated space without direct contact with wall or roof | C21: 0
A22: Heater installed within the heated space with direct contact with wall or roof | C22: 0.1
A23: Heater installed within a boiler room | C23: 0.7
A24: Heater installed under the roof, outside the heated space | C24: 0.8
A25: Heater installed outdoors | C25: 1
A26: Last case | C26: 0.5
A29: height of the building | B29: Hlrh | C29: m | D29: 6
A30: Air temperature vertical gradient | B30: dϑH | C30: °C/m | D30: 0.3
A31: Difference between air and radiant temperature | B31: Δϑlrh;rad | C31: °C | D31: 2.5

Sheet Input_series
A1: Load here the value of input variables for each time-step (time series) Set the number of input data for each time steps and the number of time step before running The macro from sheet "Output series". Local constant data may be input via the sheets "Constants"
A3: Time series for data input
A4: Settings
A5: Number of input data | C5: 5
A6: Number of time steps | C6: 12
A8: Description | B8: Generation output | C8: Calculation interval duration | D8: Operation time | E8: External temperature | F8: Installation room temperature
A9: Symbol | B9: QH,gen,out | C9: tci | D9: tgnr | E9: qext | F9: qint
A10: Unit | B10: kWh | C10: h | D10: h | E10: °C | F10: °C
A11: Origin | B11: 15316-3-1
A13: Time stamp | D13: VALUES
A14: 1 | B14: =+P14*$O$14 -> 16000 | C14: 720 | D14: 720 | E14: 3 | F14: 3 | O14: 1.6 | P14: 10000
A15: 2 | B15: =+P15*$O$14 -> 19200 | C15: =+C14 -> 720 | D15: =+D14 -> 720 | E15: 7 | F15: 7 | P15: 12000
A16: 3 | B16: 22400 | C16: =+C15 -> 720 | D16: =+D15 -> 720 | E16: 12 | F16: 12 | P16: 14000
A17: 4 | B17: 25600 | C17: 720 | D17: 720 | E17: 15 | F17: 15 | P17: 16000
A18: 5 | B18: 28800 | C18: 720 | D18: 720 | E18: 18 | F18: 18 | P18: 18000
A19: 6 | B19: 32000 | C19: 720 | D19: 720 | E19: 21 | F19: 21 | P19: 20000
A20: 7 | B20: 35200 | C20: 720 | D20: 720 | E20: 24 | F20: 24 | P20: 22000
A21: 8 | B21: 38400 | C21: 720 | D21: 720 | E21: 23 | F21: 23 | P21: 24000
A22: 9 | B22: 41600 | C22: 720 | D22: 720 | E22: 20 | F22: 20 | P22: 26000
A23: 10 | B23: 44800 | C23: 720 | D23: 720 | E23: 15 | F23: 15 | P23: 28000
A24: 11 | B24: 48000 | C24: 720 | D24: 720 | E24: 9 | F24: 9 | P24: 30000
A25: 12 | B25: 51200 | C25: 720 | D25: 720 | E25: 4 | F25: 4 | P25: 32000

Sheet Method_input
A1: THIS IS A MANDATORY SHEET All input data for the method shall be listed here. In the simplest version, values for data input in column D (both green and blue background) may be inserted manually. Varying data (green background) can be fed from the "input_series" sheet. In this sample data sheet, product data (blue background) is linked to a sample catalogue built in the "Detailed_input" sheet
B2: ϑ
A4: Name | B4: Symbol | C4: Software name | D4: Unit | E4: Value | F4: Range | G4: Origin | H4: Varying | I4: Notes
A5: Operating conditions data
A6: heat output | B6: QH,gen,out | C6: Q_H_gen_out | D6: kWh | E6: 51200 | F6: 0...∞ | G6: M3-6 | H6: YES
A7: calculation interval | B7: tci | C7: t_ci | D7: h | E7: 720 | F7: 0…8760 | G7: M1-9 | H7: YES
A8: total time of required heater operation | B8: tlrh,gen | C8: t_gnr | D8: h | E8: 720 | F8: 0…8760 | G8: M1-6 | H8: YES
A9: average external temperature in the calculation interval | B9: ϑext | C9: theta_ext | D9: °C | E9: 4 | F9: -50…+50 | G9: M1-13 | H9: YES
A10: indoor temperature of the room where the heater is located | B10: ϑint | C10: theta_int | D10: °C | E10: 4 | F10: -50…+50 | G10: M1-13 | H10: YES
A11: Product data
A12: Product description data
A13: Heater type | B13: LRH_TYPE | C13: LRH_TYPE | E13: =+Product_descriptive_data!C9 -> LRH_TYPE_AIR_MODUALL | F13: List | G13: Local | H13: NO
A14: Energy use | B14: LRH_USE | C14: LRH_USE | E14: =+Product_descriptive_data!C25 -> LRH_USE_H | F14: List | G14: Local | H14: NO
A15: Fuel | B15: LRH_FUEL | C15: LRH_FUEL | E15: =+Product_descriptive_data!C34 -> LRH_FUEL_GAS | F15: List | G15: Local | H15: NO
A16: Type of power control | B16: LRH_CTRL_POW | C16: LRH_CTRL_POW | E16: =+Product_descriptive_data!C43 -> LRH_CTRL_POW_MODUL | F16: List | G16: Local | H16: NO
A17: Condensing heater | B17: LHR_COND | C17: LHR_COND | E17: =+Product_descriptive_data!C51 -> LRH_COND_YES | F17: List | G17: Local | H17: NO
A18: Pilot flame | B18: LRH_PILOT | C18: LRH_PILOT | E18: =+Product_descriptive_data!C58 -> LRH_PILOT_NO | F18: List | G18: Local | H18: NO
A19: Heated room ventilation | B19: LRH_VENT | C19: LRH_VENT | E19: =Product_descriptive_data!C65 -> LRH_VENT_NO | F19: List | G19: Local | H19: NO
A20: Product technical data
A21: Full load combustion power; | B21: Фlrh;cmb;Pn | C21: Phi_lrh_cmb_pn | D21: kW | E21: =+Product_tech_data!D5 -> 126 | F21: 0...∞ | G21: Local | H21: NO
A22: Fuel flow rate at full power | B22: V'lrh;fuel;Pn | C22: V_lrh_fuel_Pn | D22: QT/h | F22: 0...∞ | G22: Local | H22: NO
A23: Heat losses to the flue with burner on at full load | B23: αlrh;ch;ON | C23: alpha_lrh_ch_ON | D23: % | E23: =+Product_tech_data!D9 -> 4 | F23: 0…20 | G23: Local | H23: NO
A24: Correction factor for heat losses to the flue with burner on | B24: flrh;corr;ch;ON | C24: f_lrh_corr_ch_ON | D24: - | E24: =+Product_tech_data!D10 -> 0.18 | F24: 0…1 | G24: Local | H24: NO
A25: Test temperature for heat losses to the flue with burner on | B25: ϑlrh;air;test;ON | C25: theta_lrh_air_test_ON | D25: °C | E25: =+Product_tech_data!D11 -> 20 | F25: 0…40 | G25: Local | H25: NO
A26: Load factor exponent | B26: nlrh;ch;ON | C26: n_lrh_ch_ON | D26: - | E26: =+Product_tech_data!D54 -> 0.1 | F26: 0…1 | G26: Local | H26: NO
A27: Auxiliary power of equipment related to the burner | B27: Φlrh;aux;br | C27: Phi_lrh_aux_br | D27: W | E27: =+Product_tech_data!D55 -> 500 | F27: 0...∞ | G27: Local | H27: NO
A28: Auxiliary power of equipment after the burner | B28: Φlrh;aux;blw | C28: Phi_lrh_aux_blw | D28: W | E28: =+Product_tech_data!D56 -> 800 | F28: 0...∞ | G28: Local | H28: NO
A29: Losses through the generator envelope | B29: αlrh;env | C29: alpha_lrh_env | D29: % | E29: =+Product_tech_data!D59 -> 1.60167392 | F29: 0…40 | G29: Local | H29: NO
A30: Pilot flame losses | B30: αlrh;pilot | C30: alpha_lrh_pilot | D30: % | E30: =+Product_tech_data!D74 -> 0 | F30: 0…10 | G30: Local | H30: NO
A31: Specific ventilation requirement | B31: Vlrh;vent | C31: V_lrh_vent | D31: m³/h | E31: 1.3 | F31: -50…+50 | G31: EN 13410 | H31: NO
A32: Data for modulating heaters
A33: Minimum power combustion power; | B33: Фlrh;cmb;Pmin | C33: Phi_lrh_cmb_Pmin | D33: kW | E33: =+Product_tech_data!D6 -> 63 | F33: 0...∞ | G33: Local | H33: NO
A34: Fuel flow rate at minimum power | B34: V'lrh;fuel;Pmin | C34: V_lrh_fuel_Pmin | D34: QT/h | F34: 0...∞ | G34: Local | H34: NO
A35: Loss factor with burner ON at minimum load | B35: αlrh;ch;ON;Pmin | C35: alpha_lrh_ch_ON_Pmin | D35: % | E35: =+Product_tech_data!D29 -> 3 | F35: 0…20 | G35: Local | H35: NO
A36: Auxiliary power of equipment related to the burner at minimum power | B36: Φlrh;aux;br;Pmin | C36: Phi_lrh_aux_br_Pmin | D36: W | E36: =+E27 -> 500 | F36: 0...∞ | G36: Local | H36: NO
A37: Auxiliary power of equipment after the burner at minimum power | B37: Φlrh;aux;blw;Pmin | C37: Phi_lrh_aux_blw_Pmin | D37: W | E37: =+E28 -> 800 | F37: 0...∞ | G37: Local | H37: NO
A38: Data for condensing heaters
A39: Combustion efficiency of condensing heaters | B39: ηlrh;comb | C39: eta_lrh_comb | D39: % | E39: =+Product_tech_data!D86 -> 99 | F39: 0…10 | G39: Local | H39: NO
A40: Combustion efficiency of condensing heaters at Pmin | B40: ηlrh;comb;Pmin | C40: eta_lrh_comb_Pmin | D40: % | E40: =+Product_tech_data!D87 -> 106 | F40: 0…10 | G40: Local | H40: NO
A41: System design data
A42: Process design
A43: Auxiliary energy recovery factor | B43: klrh;aux;rh | C43: k_lrh_aux_rh | D43: - | E43: =+Process_design_data!D4 -> 0.8 | F43: 0…1 | G43: Local | H43: NO
A44: Correction factor of envelope losses | B44: klrh;env | C44: k_lrh_env | D44: . | E44: =+Process_design_data!D15 -> 0.7 | F44: 0…1 | G44: Local | H44: NO
A45: height of the building | B45: Hlrh | C45: H_lrh | D45: m | E45: =+Process_design_data!D29 -> 6 | F45: 0…100 | G45: Local | H45: NO
A46: Air temperature vertical gradient | B46: dϑ;H | C46: Nabla_theta_H | D46: °C/m | E46: =+Process_design_data!D30 -> 0.3 | F46: 0…10 | G46: Local | H46: NO
A47: Difference between air and radiant temperature | B47: Δϑlrh;rad | C47: Deltatheta_lhr_rad | D47: °C | E47: =+Process_design_data!D31 -> 2.5 | F47: -10…+10 | G47: Local | H47: NO
A48: Control type data
A49: Constants
A50: Air specific heat | B50: cp;air | C50: cp_air | D50: Wh/m³K | E50: 0.3 | G50: EN XXXX | H50: NO

Sheet Method_calculation
A1: THIS IS A MANDATORY SHEET One time step calculation shall be described here. For each calculation step (= 1 row) data for the formula in column D shall be taken from the "Method_input" sheet or previous calculation steps. Include in the column "Formula ref" its number in the standard text. The example is based on EN 15316-4-1:2008 Copy and paste a copy of the equation into column "Formula" Use the column note for information on the calculation
A3: Description | B3: Symbol | C3: Software name | D3: Unit | E3: Value | F3: Formula ref | G3: Formula | H3: Notes
A5: Generation sub-system required output | B5: QH;gen;out | D5: kWh | E5: =+Method_input!E6 -> 51200 | H5: Data transfer
A6: MAXIMUM ENERGY OUTPUT
A8: Full load combustion power; | B8: Фlrh;cmb;Pn | D8: kW | E8: =+Method_input!E21 -> 126 | H8: Data transfer
A9: calculation interval | B9: tci | C9: t_ci | D9: h | E9: =+Method_input!E7 -> 720 | H9: Data transfer
A10: total time of required heater operation | B10: tlrh;gen | C10: t_gnr | D10: h | E10: =+Method_input!E8 -> 720 | H10: Data transfer
A11: Heat losses to the flue with burner on at full load | B11: αlrh;ch;ON | C11: alpha_lrh_ch_ON | D11: % | E11: =+Method_input!E23 -> 4
A12: Maximum energy output | B12: QH;gen;out;max;ci | D12: kWh | E12: =+E8*E10*(1-E61/100) -> 88742.36665 | F12: (5) | H12: Method output
A13: Iteration control | E13: TRUE | G13: Set to TRUE to start iterations | H13: Just for spreadsheet test
A14: Iteration initial value for βlrh;cmb | E14: =+E5/(E10*E8) -> 0.5643738977 | F14: (26)
A16: Load factor | B16: βlrh;cmb | D16: p.u. | E16: =+IF(E13,E67,E14) -> 0.5698908977
A17: Burner ON time | B17: tlrh;ON | D17: h | E17: =+E16*E10 -> 410.3214463 | F17: (6) | H17: Iteration start
A18: average external temperature in the calculation interval | B18: ϑext | C18: theta_ext | D18: °C | E18: =+Method_input!E9 -> 4 | H18: Data transfer
A19: indoor temperature of the room where the heater is located | B19: ϑint | C19: theta_int | D19: °C | E19: =+Method_input!E10 -> 4 | H19: Data transfer
A20: 6.4.4.3 Losses through the chimney with burner on
A21: Heater type | B21: LRH_TYPE | C21: LRH_TYPE | E21: LRH_TYPE_LUM | H21: Data transfer
A22: Combustion air temperature | B22: ϑlrh;gen;air | D22: °C | E22: =IF(E21=Product_descriptive_data!C12,Method_calculation!E19,Method_calculation!E18) -> 4 | G22: To be developed: selection of intake air temperature
A23: Test temperature for heat losses to the flue with burner on | B23: ϑlrh;air;test;ON | C23: theta_lrh_air_test_ON | D23: °C | E23: =+Method_input!E25 -> 20 | H23: Data transfer
A24: Load factor exponent | B24: nlrh;ch;ON | C24: n_lrh_ch_ON | D24: - | E24: =+Method_input!E26 -> 0.1 | H24: Data transfer
A25: Correction factor for heat losses to the flue with burner on | B25: flrh;corr;ch;ON | C25: f_lrh_corr_ch_ON | D25: - | E25: =+Method_input!E24 -> 0.18 | H25: Data transfer
A26: Actual specific heat losses through the chimney with the burner on | B26: αlrh;ch;on;corr | D26: - | E26: =+(E11+(E22-E23)*E25)*(E16^E24) -> 1.058759194 | F26: (10)
A27: 6.4.4.4 Induced ventilation heat losses αlrh,vent,ON and αlrh,vent,OFF
A28: height of the building | B28: Hlrh | C28: H_lrh | D28: m | E28: =+Method_input!E45 -> 6 | H28: Data transfer
A29: Air temperature vertical gradient | B29: ?? | C29: ?? | D29: °C/m | E29: =+Method_input!E46 -> 0.3 | H29: Data transfer
A30: Difference between air and radiant temperature | B30: Δϑlrh;rad | C30: deltatheta_lhr_rad | D30: °C | E30: =+Method_input!E47 -> 2.5 | H30: Data transfer
A31: temperature of the air/flue-mixture exiting the building near the roof | B31: ϑlrh;air;exh | D31: °C | E31: =+E19-E30+E28*E29 -> 3.3 | F31: (15)
A32: Specific ventilation requirement | B32: Vlrh;vent | C32: V_lrh_vent | D32: m³/hkW | E32: =+Method_input!E31 -> 1.3 | H32: Data transfer
A33: Air specific heat | B33: cp;air | C33: cp_air | D33: Wh/kg°C | E33: =+Method_input!E50 -> 0.3 | H33: Data transfer
A34: absolute induced ventilation heat loss | B34: Φlrh;vent | D34: W | E34: =+E32*E8*E33*(E31-E18) -> -34.398 | F34: (14)
A35: specific ventilation loss | B35: αlrh;vent | D35: % | E35: =+E34*100/(E8*1000) -> -0.0273 | F35: (13)
A36: Heated room ventilation | B36: LRH_VENT | C36: LRH_VENT | E36: =+Method_input!E19 -> LRH_VENT_NO
A37: Type A heater? | E37: =NOT(E36=Product_descriptive_data!C69) -> FALSE
A38: Interlok of fan? | E38: =E36=Product_descriptive_data!C68 -> FALSE
A39: ventilation heat losses with burner ON | B39: αlrh;vent;ON | D39: % | E39: =IF(E37,E35,0) -> 0 | F39: (16) (17)
A40: ventilation heat losses with burner OFF | B40: αlrh;vent;OFF | D40: % | E40: =IF(AND(E37,NOT(E38)),E35,0) -> 0 | F40: (18) (19)
A41: 6.4.4.5 Corrected envelope losses αlrh,env,corr
A42: Losses through the generator envelope | B42: αlrh;env | C42: alpha_lrh_env | D42: % | E42: =+Method_input!E29 -> 1.60167392 | H42: Data transfer
A43: Correction factor of envelope losses | B43: klrh;env | C43: k_lrh_env | D43: . | E43: =+Method_input!E44 -> 0.7 | H43: Data transfer
A44: Corrected envelope losses | B44: αlrh;env;corr | D44: % | E44: =+E42*E43 -> 1.121171744 | F44: (20)
A45: 6.4.4.6 Heat recovery from condensation αlrh,cond
A46: Combustion efficiency of condensing heaters | B46: ηlrh;comb | C46: eta_lrh_comb | D46: % | E46: =+Method_input!E39 -> 99 | H46: Data transfer
A47: Condensing heater | B47: LHR_COND | C47: LHR_COND | E47: =+Method_input!E17 -> LRH_COND_YES | H47: Data transfer
A48: Condensing heater ? | E48: =E47=Product_descriptive_data!C53 -> TRUE | H48: Data transfer
A49: heat recovery from condensation | B49: αlrh;cond | D49: % | E49: =IF(E48,IF(E46>100,E46-100,0),0) -> 0 | F49: (21)
A50: 6.4.5.1 Auxiliary energy related to time burner on
A51: Auxiliary power of equipment related to the burner | B51: Φlrh;aux;br | C51: Phi_lrh_aux_br | D51: kW | E51: =+Method_input!E27/1000 -> 0.5 | H51: Data transfer
A52: auxiliary energy for the generator related to time when burner on | B52: Wlrh;br | D52: kWh | E52: =+E51*E17 -> 205.1607232 | F52: (22)
A53: Auxiliary energy recovery factor (burner) | B53: klrh;aux;br;rh | C53: k_lrh_aux_br_rh | D53: - | E53: =+Method_input!E43 -> 0.8
A54: Recovered auxiliary energy for the generator related to time when burner on | B54: Qlrh;br;rh | D54: kWh | E54: =+E53*E52 -> 164.1285785 | F54: (23)
A55: 6.4.5.2 Auxiliary energy of additional devices (after the burner)
A56: Auxiliary power of equipment after the burner | B56: Φlrh;aux;blw | C56: Phi_lrh_aux_blw | D56: kW | E56: =+Method_input!E28/1000 -> 0.8 | H56: Data transfer
A57: auxiliary energy of additional devices after the burner | B57: Wlrh;blw | D57: kWh | E57: =+E56*E10 -> 576 | F57: (24)
A58: Auxiliary energy recovery factor (constnt op.) | B58: klrh;aux;blw;rh | C58: k_lrh_aux_blw_rh | D58: - | E58: =+Method_input!E43 -> 0.8 | H58: Data transfer
A59: Rcovered auxiliary energy of additional devices after the burner | B59: Qlrh;blw;rh | D59: kWh | E59: =+E58*E57 -> 460.8 | F59: (25)
A60: 6.4.6 Energy calculation
A61: Burner ON losses | B61: αlrh;ON | D61: % | E61: =+E26+E39+E44-E49 -> 2.179930938 | F61: (8)
A62: Pilot flame | B62: LRH_PILOT | C62: LRH_PILOT | E62: =+Method_input!E18 -> LRH_PILOT_NO | H62: Data transfer
A63: Pilot flame? | E63: =E62=Product_descriptive_data!C60 -> FALSE
A64: Pilot flame losses | D64: % | E64: =+Method_input!E30 -> 0 | H64: Data transfer
A65: Pilot flame losses | B65: αlrh;pilot | C65: alpha_lrh_pilot | D65: % | E65: =IF(E63,E64,0) -> 0 | H65: Actual value
A66: Burner OFF losses | B66: αlrh;OFF | D66: % | E66: =+E65+E40 -> 0 | F66: (9)
A67: New load factor | B67: βlrh;cmb | D67: p.u. | E67: =+(100*((E5-E59)/(E8*E10))+E66)/(100*(1+E54/E5)-E61+E66) -> 0.5698908977 | F67: (27)
A69: Fuel heat input | B69: EH;gen;in | D69: kWh | E69: =+E8*E17 -> 51700.50224 | F69: (28) | H69: Method output - Single stage
A70: total auxiliary energy | B70: Wgnr;aux | D70: kWh | E70: =+E17*E51+E56*E10 -> 781.1607232 | F70: (29) | H70: Method output - Single stage
A71: total recoverable heat losses | B71: QH;gen;ls;rbl | D71: kWh | E71: 0 | G71: See clause 6.4.6 item 9) | H71: Method output - Single stage
A72: Fuel used | E72: =+Method_input!$E$15 -> LRH_FUEL_GAS | F72: See note | G72: No calculation. Just pass the information to subsequent modules to appy the relevant weuighting factors for deliverd energy | H72: Method output - Single stage
A74: 7 Multistage and modulating heaters
A75: Generation sub-system required output | B75: QH;gen;out | D75: kWh | E75: =+Method_in -> 51200 | H75: Data transfer
A76: Full load combustion power; | B76: Фlrh;cmb;Pn | D76: kW | E76: =+Method_input!E21 -> 126 | H76: Data transfer
A77: Minimum power combustion power | B77: Фlrh,cmb,Pmin | D77: kW | E77: =+Method_input!E33 -> 63 | H77: Data transfer
A78: modulating ration | B78: klrh;mod | E78: =+E77/E76 -> 0.5 | F78: (31)
A79: total time of required heater operation | B79: tlrh;gen | C79: t_gnr | D79: h | E79: =+Method_input!E8 -> 720 | H79: Data transfer
A81: ON_OFF mode
A82: Iteration control | E82: TRUE | G82: Set to TRUE to start iterations | H82: Just for spreadsheet test
A83: Iteration initial value for βlrh;cmb;min | B83: βlrh;cmb;min | E83: =+E75/(E77*E79) -> 1.128747795 | F83: (26)
A84: Load factor | B84: βlrh;cmb;min | D84: p.u. | E84: =+IF(E82,E120,E83) -> 1.068958738 | H84: Iteration start
A85: Burner ON time | B85: tlrh;ON | D85: h | E85: =+E84*E79 -> 769.6502914 | F85: (33)
A86: Burner OFF time | B86: tlrh;OFF | D86: h | E86: =+E79-E85 -> -49.65029136 | F86: (34)
A88: Heat losses to the flue with burner on at minimum load | B88: αlrh;ch;ON;Pmin | D88: % | E88: =+Method_input!E35 -> 3 | H88: Data transfer
A89: average external temperature in the calculation interval | B89: ϑext | C89: theta_ext | D89: °C | E89: =+Method_input!E9 -> 4 | H89: Data transfer
A90: indoor temperature of the room where the heater is located | B90: ϑint | C90: theta_int | D90: °C | E90: =+Method_input!E10 -> 4 | H90: Data transfer
A91: Heater type | B91: LRH_TYPE | C91: LRH_TYPE | E91: LRH_TYPE_LUM | H91: Data transfer
A92: Combustion air temperature | B92: ϑlrh;gen;air | D92: °C | E92: =IF(E91=Product_descriptive_data!$C$87,Method_calculation!E89,Method_calculation!E90) -> 4 | G92: To be developed: selection of intake air temperature
A93: Test temperature for heat losses to the flue with burner on | B93: ϑlrh;air;test;ON | C93: theta_lrh_air_test_ON | D93: °C | E93: =+Method_input!E25 -> 20 | H93: Data transfer
A94: Load factor exponent | B94: nlrh;ch;ON | C94: n_lrh_ch_ON | D94: - | E94: =+Method_input!E26 -> 0.1 | H94: Data transfer
A95: Correction factor for heat losses to the flue with burner on | B95: flrh;corr;ch;ON | C95: f_lrh_corr_ch_ON | D95: - | E95: =+Method_input!E24 -> 0.18 | H95: Data transfer
A96: Actual specific heat losses through the chimney with the burner on at minimum power | B96: αlrh;ch;on;corr | D96: - | E96: =+(E88+(E92-E93)*E95)*(E84^E94) -> 0.1208028945 | F96: (41)
A98: ventilation heat losses with burner ON | B98: αlrh;vent;ON | D98: % | E98: =+E39 -> 0 | H98: Same as ON-OFF
A99: ventilation heat losses with burner OFF | B99: αlrh;vent;OFF | D99: % | E99: =+E40 -> 0 | H99: Same as ON-OFF
A100: Corrected envelope losses | B100: αlrh;env;corr | D100: % | E100: =+E44 -> 1.121171744 | H100: Same as ON-OFF
A102: Combustion efficiency of condensing heaters | B102: ηlrh;comb | C102: eta_lrh_comb | D102: % | E102: =+Method_input!E40 -> 106 | H102: Data transfer
A103: Condensing heater | B103: LHR_COND | C103: LHR_COND | E103: =+Method_input!E17 -> LRH_COND_YES | H103: Data transfer
A104: Condensing heater ? | E104: =E103=Product_descriptive_data!$C$53 -> TRUE | H104: Data transfer
A105: heat recovery from condensation at minimum power | B105: αlrh;cond;Pmin | D105: % | E105: =IF(E104,IF(E102>100,E102-100,0),0) -> 6 | F105: (41)
A106: Burner ON losses at minimum power | B106: αlrh,ON,Pmin | D106: % | E106: =+E96+((E98+E100)/E78)-E105 -> -3.636853617 | F106: (38)
A108: Pilot flame losses | B108: αlrh;pilot | C108: alpha_lrh_pilot | D108: % | E108: =+E65 -> 0 | H108: Same as ON-OFF
A109: Burner OFF losses at referred to minimum power | B109: αlrh,OFF;Pmin | D109: % | E109: =+(E108+E99)/E78 -> 0 | F109: (39)
A111: Auxiliary power of equipment related to the burner | B111: Φlrh;aux;br | C111: Phi_lrh_aux_br | D111: kW | E111: =+Method_input!E27/1000 -> 0.5 | H111: Data transfer
A112: auxiliary energy for the generator related to time when burner on | B112: Wlrh;br | D112: kWh | E112: =+E111*E85 -> 384.8251457 | F112: (22)
A113: Auxiliary energy recovery factor (burner) | B113: klrh;aux;br;rh | C113: k_lrh_aux_br_rh | D113: - | E113: =+Method_input!E43 -> 0.8
A114: Recovered auxiliary energy for the generator related to time when burner on | B114: Qlrh;br;rh | D114: kWh | E114: =+E113*E112 -> 307.8601165 | F114: (23)
A116: Auxiliary power of equipment after the burner | B116: Φlrh;aux;blw | C116: Phi_lrh_aux_blw | D116: kW | E116: =+Method_input!E28/1000 -> 0.8 | H116: Data transfer
A117: auxiliary energy of additional devices after the burner | B117: Wlrh;blw | D117: kWh | E117: =+E116*E79 -> 576 | F117: (24)
A118: Auxiliary energy recovery factor (constnt op.) | B118: klrh;aux;blw;rh | C118: k_lrh_aux_blw_rh | D118: - | E118: =+Method_input!E43 -> 0.8 | H118: Data transfer
A119: Rcovered auxiliary energy of additional devices after the burner | B119: Qlrh;blw;rh | D119: kWh | E119: =+E118*E117 -> 460.8 | F119: (25)
A120: New load factor | B120: βlrh;cmb;min | D120: p.u. | E120: =(100*(E75-E119)/(E77*E79)+E109)/(100+(1+E114/E75)-E106+E109) -> 1.068958738 | F120: (43)
A122: Fuel heat input | B122: EH;gen;in | D122: kWh | E122: =+E85*E77 -> 48487.96836 | F122: (44) | H122: Method output, multistage ON-OFF mode
A123: total auxiliary energy | B123: Wgnr;aux | D123: kWh | E123: =+E85*E111+E116*E79 -> 960.8251457 | F123: (45) | H123: Method output, multistage ON-OFF mode
A124: total recoverable heat losses | B124: QH;gen;ls;rbl | D124: kWh | E124: 0 | G124: See clause 6.4.6 item 9) | H124: Method output, multistage ON-OFF mode
A125: Fuel used | E125: =+Method_input!$E$15 -> LRH_FUEL_GAS | F125: See note | G125: No calculation. Just pass the information to subsequent modules to appy the relevant weuighting factors for deliverd energy | H125: Method output, multistage ON-OFF mode
A127: MODULATING mode
A129: Burner ON time | B129: tlrh;ON | D129: h | E129: =+E10 -> 720 | F129: (35)
A130: Burner OFF time | B130: tlrh;OFF | D130: h | E130: 0 | F130: (36)
A132: Heat losses to the flue with burner on at maximum load | B132: αlrh;ch;ON | D132: % | E132: =+Method_input!E23 -> 4 | H132: Data transfer
A133: average external temperature in the calculation interval | B133: ϑext | C133: theta_ext | D133: °C | E133: =+E89 -> 4 | H133: Data transfer
A134: indoor temperature of the room where the heater is located | B134: ϑint | C134: theta_int | D134: °C | E134: =+E90 -> 4 | H134: Data transfer
A135: Heater type | B135: LRH_TYPE | C135: LRH_TYPE | E135: LRH_TYPE_LUM | H135: Data transfer
A136: Combustion air temperature | B136: ϑlrh;gen;air | D136: °C | E136: =IF(E135=Product_descriptive_data!$C$87,Method_calculation!E133,Method_calculation!E134) -> 4 | G136: To be developed: selection of intake air temperature
A137: Test temperature for heat losses to the flue with burner on | B137: ϑlrh;air;test;ON | C137: theta_lrh_air_test_ON | D137: °C | E137: =+E93 -> 20 | H137: Data transfer
A138: Load factor exponent | B138: nlrh;ch;ON | C138: n_lrh_ch_ON | D138: - | E138: =+Method_input!E26 -> 0.1 | H138: Data transfer
A139: Correction factor for heat losses to the flue with burner on | B139: flrh;corr;ch;ON | C139: f_lrh_corr_ch_ON | D139: - | E139: =+Method_input!E24 -> 0.18 | H139: Data transfer
A140: Load factor at Pn | E140: 1
A141: Actual specific heat losses through the chimney with the burner on at full load | B141: αlrh;ch;on;Pn;corr | D141: - | E141: =+(E132+(E136-E137)*E139)*(E140^E138) -> 1.12 | F141: (41)
A143: ventilation heat losses with burner ON | B143: αlrh;vent;ON | D143: % | E143: =+E98 -> 0 | H143: Already calculated
A144: Corrected envelope losses | B144: αlrh;env;corr | D144: % | E144: =+E100 -> 1.121171744 | H144: Already calculated
A145: heat recovery from condensation at maximum power | B145: αlrh;cond | D145: % | E145: =+E49 -> 0 | H145: Already calculated
A146: total losses when the burner is ON at maximum power | B146: αlrh,ON;Pn | D146: % | E146: =+E141+E143+E144-E145 -> 2.241171744 | F146: (37)
A148: Actual specific heat losses through the chimney with the burner on at minimum power | B148: αlrh;ch;on;corr | D148: % | E148: =+E96 -> 0.1208028945 | H148: Already calculated
A149: heat recovery from condensation at minimum power | B149: αlrh;cond;Pmin | D149: % | E149: =+E105 -> 6 | H149: Already calculated
A150: total losses when the burner is ON at minimum power | B150: αlrh,ON;Pmin | D150: % | E150: =+E148+(E144+E143)/E78-E149 -> -3.636853617 | F150: (38)
A152: average combustion power | B152: Φlrh;cmb;avg | D152: kW | E152: =+E75/E79 -> 71.11111111 | F152: (46)
A153: Iteration control | E153: TRUE | G153: Set to TRUE to start iterations | H153: Just for spreadsheet test
A154: average combustion power | B154: Φlrh;cmb;avg | D154: kW | E154: =IF(E153,E170,E152) -> 67.91250738 | H154: Current average power value
A156: modulation factor | B156: βlrh;mod | D156: p.u. | E156: =+(E154-E77)/(E76-E77) -> 0.07797630755 | F156: (47)
A158: Auxiliary power of equipment related to the burner | B158: Φlrh;aux;br | C158: Phi_lrh_aux_br | D158: kW | E158: =+Method_input!E27 -> 500 | H158: Data transfer
A159: auxiliary energy for the generator related to time when burner on | B159: Wlrh;br | D159: kWh | E159: =+E158*E129/1000 -> 360 | F159: (22)
A160: Auxiliary energy recovery factor (burner) | B160: klrh;aux;br;rh | C160: k_lrh_aux_br_rh | D160: - | E160: =+Method_input!$E$43 -> 0.8
A161: Recovered auxiliary energy for the generator related to time when burner on | B161: Qlrh;br;rh | D161: kWh | E161: =+E160*E159 -> 288 | F161: (23)
A163: Auxiliary power of equipment after the burner | B163: Φlrh;aux;blw | C163: Phi_lrh_aux_blw | D163: kW | E163: =+Method_input!E28 -> 800 | H163: Data transfer
A164: auxiliary energy of additional devices after the burner | B164: Wlrh;blw | D164: kWh | E164: =+E163*E79/1000 -> 576 | F164: (24)
A165: Auxiliary energy recovery factor (constnt op.) | B165: klrh;aux;blw;rh | C165: k_lrh_aux_blw_rh | D165: - | E165: =+Method_input!$E$43 -> 0.8 | H165: Data transfer
A166: Rcovered auxiliary energy of additional devices after the burner | B166: Qlrh;blw;rh | D166: kWh | E166: =+E165*E164 -> 460.8 | F166: (25)
A168: losses with burner on at average power | B168: αlrh;ON;avg | D168: % | E168: =+E150+(E146-E150)*E156 -> -3.178506904 | F168: (48)
A170: new average combustion power | B170: Φlrh;cmb;avg | D170: kW | E170: =+(E75-E166-E161)/(E79*(1-E168/100)) -> 67.91250738 | F170: (49)
A172: Fuel heat input | B172: EH;gen;in | D172: kWh | E172: =+E170*E79 -> 48897.00531 | F172: (50) | H172: Method output, multistage ON-OFF mode
A173: total auxiliary energy | B173: Wgnr;aux | D173: kWh | E173: =+E158*E129/1000+E163*E79/1000 -> 936 | F173: (51) | H173: Method output, multistage ON-OFF mode
A174: total recoverable heat losses | B174: QH;gen;ls;rbl | D174: kWh | E174: 0 | G174: See clause 6.4.6 item 9) | H174: Method output, multistage ON-OFF mode
A175: Fuel used | E175: =+Method_input!$E$15 -> LRH_FUEL_GAS | F175: See note | G175: No calculation. Just pass the information to subsequent modules to appy the relevant weuighting factors for deliverd energy | H175: Method output, multistage ON-OFF mode
A177: Output selection
A178: Power control type | B178: LRH_CTRL_POW | D178: List | E178: =+Method_input!E16 -> LRH_CTRL_POW_MODUL
A179: Single stage burner? | E179: =E178=Product_descriptive_data!C45 -> FALSE
A180: Modulating in ON-OFF mode? | E180: =E120<1 -> FALSE
A182: Selected output
A183: Fuel heat input | B183: EH;gen;in | D183: kWh | E183: =IF($E$179,E69,IF($E$180,E122,E172)) -> 48897.00531
A184: total auxiliary energy | B184: Wgnr;aux | D184: kWh | E184: =IF($E$179,E70,IF($E$180,E123,E173)) -> 936
A185: total recoverable heat losses | B185: QH;gen;ls;rbl | D185: kWh | E185: 0
A186: Fuel used | E186: LRH_FUEL_GAS

Sheet Method_output
A1: THIS IS A MANDATORY SHEET Output of one step calculation shall be indicated here. Each cell in the column value shall be a reference to a single cell in the "Method_calculation" sheet. The macro will take the calculation step results and fill the values table in the "Output_series" sheet.
A5: Name | B5: Symbol | C5: Software name | D5: Unit | E5: Value | F5: Range | G5: Intended destination | H5: Varying | I5: Notes
A6: Energy flow data
A7: Generation input | B7: EH;gen;in | C7: E_H_gen_in | D7: kWh | E7: =+Method_calculation!E183 -> 48897.00531 | F7: 0...∞ | G7: M3-1 | H7: YES | I7: Required fuel input
A8: Recoverable heat losses | B8: QH;gen;ls;rbl | C8: Q_H_gen_ls_rbl | D8: kWh | E8: =+Method_calculation!E185 -> 0 | F8: 0...∞ | G8: M2-2 | H8: YES | I8: Recoverable heat for heating
A9: Total auxiliary energy | B9: WH;gen;aux | C9: W_H_gen_aux | D9: kWh | E9: =+Method_calculation!E184 -> 936 | F9: 0...∞ | G9: M3-1 | H9: YES | I9: Total auxiliary energy
A10: Operating condition data
A11: Maximum energy output | B11: QH;gen;out;max | C11: Q_H_gen_out_max | D11: kWh | E11: =+Method_calculation!E12 -> 88742.36665 | F11: 0...∞ | G11: ? | H11: YES | I11: Could be also expressed as power
A12: Other data
A13: Fuel type | B13: LRH_FUEL | C13: LRH_FUEL | D13: List | E13: =+Method_calculation!E186 -> LRH_FUEL_GAS | F13: List | G13: M3-1 | H13: YES | I13: Needed to apply the right weighting factors
A15: Thermal efficiency | E15: =+Method_in/Method_out -> 1.04709889

Sheet Output_series
A1: Here a time series can be generated to test the method with variable input data. Data input series must be inserted in the "input_series" sheet before.
A3: Time series for data output
A4: Settings
A5: Number of output data | C5: 9
A7: This table will be filled automatically via a macro scanning the "input_series" and performing for each time step the calculation defined in the "Method_calculation" sheet.
A8: Press CLEAR OUTPUT to reset output series
A9: Press "Run method" to start calculation of individual time steps
B13: Generation input | C13: Recoverable heat | D13: Total auxiliary energy | F13: maximum output
B14: kWh | C14: kWh | D14: kWh | J14: Thermal
A15: Symbol | B15: EH,gen,in | C15: QH,gen,rbl | D15: WH,gnr,aux | F15: QH;gen;out;max | H15: LRH_FUEL | J15: Efficiency
A16: Destination
A17: Time stamp | D17: VALUES
A18: 1 | B18: 14825.04905 | C18: 0 | D18: 693.6591194 | F18: 88986.89009 | H18: LRH_FUEL_GAS | J18: 1.07925444
A19: 2 | B19: 17990.45445 | C19: 0 | D19: 718.7813845 | F19: 88413.75323 | H19: LRH_FUEL_GAS | J19: 1.067232629
A20: 3 | B20: 21234.69715 | C20: 0 | D20: 744.5293425 | F20: 87681.57469 | H20: LRH_FUEL_GAS | J20: 1.0548773
A21: 4 | B21: 24456.96865 | C21: 0 | D21: 770.1029258 | F21: 87220.35526 | H21: LRH_FUEL_GAS | J21: 1.046736428
A22: 5 | B22: 27715.41675 | C22: 0 | D22: 795.963625 | F22: 86751.20147 | H22: LRH_FUEL_GAS | J22: 1.03913285
A23: 6 | B23: 31011.24339 | C23: 0 | D23: 822.1209793 | F23: 86274.98656 | H23: LRH_FUEL_GAS | J23: 1.03188381
A24: 7 | B24: 34345.63348 | C24: 0 | D24: 848.5843927 | F24: 85792.38646 | H24: LRH_FUEL_GAS | J24: 1.02487555
A25: 8 | B25: 37455.65268 | C25: 0 | D25: 873.2670848 | F25: 85908.73723 | H25: LRH_FUEL_GAS | J25: 1.025212411
A26: 9 | B26: 40412.47348 | C26: 0 | D26: 896.7339165 | F26: 86334.49819 | H26: LRH_FUEL_GAS | J26: 1.029385148
A27: 10 | B27: 43184.41711 | C27: 0 | D27: 918.7334691 | F27: 87074.98521 | H27: LRH_FUEL_GAS | J27: 1.037411247
A28: 11 | B28: 46031.54917 | C28: 0 | D28: 936 | F28: 87980.30414 | H28: LRH_FUEL_GAS | J28: 1.04276308
A29: 12 | B29: 48897.00531 | C29: 0 | D29: 936 | F29: 88742.36665 | H29: LRH_FUEL_GAS | J29: 1.04709889

Sheet History
B2: Date | C2: Version scope | D2: Changes, notes
B4: 2013-11-15 | C4: First version for I/O check
B5: 2014-01-25 | C5: First version with working calculation procedure

Sheet TEMPLATE_INFO
A1: Intended use of this document Those responsible for the drafting of actual individual EPB standards shall - read and understand the following documents - prCEN/TS 16628 Basic Principles (in short "BP") - prCEN/TS 16629 Detailed Technical Rules (in short "DTR") - prEN 15603:2013 ("Overarching Standard", in short "OA")) - prCEN/TR 15615:2013 Technical report to overarching standard; - Prepare their individual EPB standard according to CEN rules, BP, DTR and OA - Prepare the accompanying technical report using the dedicated template - Prepare an accompanying XLS spreadsheet, to demonstrate inputs, output and calculation chain. This sample excel spreadsheet provides a template to help in this task.
A2: Why an Excel spradsheet? To demonstrate the validity and required data I/O for the calculation procedure defined in the standard: - list of all input needed --> sheet "Method_input" - list of intended output --> sheet "Method_output" - calculation sequence --> sheet "Method_calculation"
A3: The example is prepared for a simple procedure. The sheet calculation may need extensions such as: - using several columns when operating on arrays - refering to a subset of sheets input/calculation/output to describe a subroutine For complex tasks MACRO can be used. This sheet does not support calculation methods that take into account data in a different time-step than that that is being calculated. A version that allows taking into account values at previous time step will be developed.
A4: LIST SHEETS
A5: Simplified_input_correlation Use this sheet to demontrate simplified input correlation, if any in your standard. Typically these correlations are defined in annex C of the standard. They provide the normal detailed input of a procedure, based on a simplified input data set.
A6: Product_descriptive_data Use this sheet to list product descriptive data (typically with case identifiers). Some examples of selection tables are given. The output from the selection tables (green cells) can be linked to the sheet "method_input" for use in the procedure.
A7: Product_tech_data Use this sheet to list product technical data (typically numerical values and data). Some examples are given with default that may be typically included in annex A of the standard. The output from the selection tables (green cells) can be linked to the sheet "method_input" for use in the procedure.
A8: Process_design_data Use this sheet to list system descriptive data (typically with case identifiers). Some examples of selection tables are given. The output from the selection tables (green cells) can be linked to the sheet "method_input" for use in the procedure.
A9: Data_catalogue_example It is an example of how a data catalogue can work, filtering the catalogue of product properties based on product descriptive data. You can optionally build a similar catalogue for products involved in your standard.
A10: Input_series Prepare in this sheet data for each time step if you want to test the procedure on more steps.
A11: Method_input List in this sheet all the input required for the calculation in one time step. THIS SHEET IS REQUIRED TO DEMONSTRATE THE REQUIRED DATA INPUT.
A12: Method_calculation Detail in this sheet your calculation procedure. There should be one calculation in one cell for each equation in the standard. THIS SHEET IS REQUIRED TO DEMONSTRATE THE CALCULATION PROCEDURE.
A13: Method_output List in this sheet all the intended output of the procedure. THIS SHEET IS REQUIRED TO DEMONSTRATE THE AVAILABLE DATA OUTPUT.
A14: Output_series Series alculation results are stored in this sheet. Calculation for each time step is launched in this sheet.

Sheet Data_catalogue_example
A1: EXAMPLE OF A PRODUCT DATA CATALOGUE Product descriptive data is used to filter the actual catalogue. Unsuitable prioducts are indicated by "Non available" The desired product in the catalogue is then selected via the main list --> alla data is available with one click. NOTE: Default data are also part of the catalogue. This sample catalogue is connected to the "Method input" sheet. NOTE: This highlights the high importance of the user interface and of a correct data input structuring. | J1: DATA FOR EACH BOILER | W1: SELECTION OF BOILERS COMPATIBLE WITH THE QUALITATIVE DESCRIPTION
A4: Product descriptive data (qualitative)
A6: Boiler use
A7: 1 | C7: BLR_USE | D7: =INDEX(D9:D11,A7) -> BLR_USE_H
A9: Heating | D9: BLR_USE_H
A10: Domestic hot water | D10: BLR_USE_DHW
A11: All | D11: BLR_USE_ALL
A14: Fuel
A15: 1 | C15: BLR_FUEL | D15: =INDEX(D17:D19,A15) -> BLR_FUEL_GAS
A16: Values
A17: Gas | D17: BLR_FUEL_GAS
A18: Oil | D18: BLR_FUEL_OIL
A19: All | D19: BLR_FUEL_ALL
A22: Boiler type, condensing / non condensing
A23: 2 | C23: BLR_COND | D23: =INDEX(D25:D26,A23) -> BLR_COND_NO
A24: Values
A25: Condensing | D25: BLR_COND_YES
A26: Non condensing | D26: BLR_COND_NO
A29: Product technical data
A31: Generator output at full load; | E31: ФPn | F31: kW | G31: 60
A34: Boiler product data | C34: BLR_DATA | D34: =INDEX(D38:D49,C36) -> BLR_DATA_GAS_LT
C36: 2
A37: Values | W37: Display ? | X37: Condensing ? | Z37: Fuel ? | AB37: Condition 3? | AD37: Condition 4?
A38: =IF(W38,B38,"NOT COMPATIBLE") -> Gas, standard, minimum value | B38: Gas, standard, minimum value | D38: BLR_DATA_GAS_STD | W38: =AND(X38,Z38,AB38,AD38) -> TRUE | X38: =$D$23=Y38 -> TRUE | Y38: BLR_COND_NO | Z38: =OR($D$15=$D$19,$D$15=AA38) -> TRUE | AA38: BLR_FUEL_GAS | AB38: TRUE | AD38: TRUE
A39: =IF(W39,B39,"NOT COMPATIBLE") -> Gas, low temperature, minimum value | B39: Gas, low temperature, minimum value | D39: BLR_DATA_GAS_LT | W39: =AND(X39,Z39,AB39,AD39) -> TRUE | X39: =$D$23=Y39 -> TRUE | Y39: BLR_COND_NO | Z39: TRUE | AA39: BLR_FUEL_GAS | AB39: TRUE | AD39: TRUE
A40: NOT COMPATIBLE | B40: Gas, Condensing, minimum value | D40: BLR_DATA_GAS_CND | W40: FALSE | X40: FALSE | Y40: BLR_COND_YES | Z40: TRUE | AA40: BLR_FUEL_GAS | AB40: TRUE | AD40: TRUE
A41: NOT COMPATIBLE | B41: Oil, standard, minimum value | D41: BLR_DATA_OIL_STD | W41: FALSE | X41: TRUE | Y41: BLR_COND_NO | Z41: FALSE | AA41: BLR_FUEL_OIL | AB41: TRUE | AD41: TRUE
A42: NOT COMPATIBLE | B42: Oil, low temperature, minimum value | D42: BLR_DATA_OIL_LT | W42: FALSE | X42: TRUE | Y42: BLR_COND_NO | Z42: FALSE | AA42: BLR_FUEL_OIL | AB42: TRUE | AD42: TRUE
A43: NOT COMPATIBLE | B43: Oil, condensing, minimum value | D43: BLR_DATA_OIL_CND | W43: FALSE | X43: FALSE | Y43: BLR_COND_YES | Z43: FALSE | AA43: BLR_FUEL_OIL | AB43: TRUE | AD43: TRUE
A44: NOT COMPATIBLE | B44: Default national: 1 - old oil boiler | D44: BLR_DATA_NAT_1 | W44: FALSE | X44: TRUE | Y44: BLR_COND_NO | Z44: FALSE | AA44: BLR_FUEL_OIL | AB44: TRUE | AD44: TRUE
A45: Default national: 2 - old gas boiler | B45: Default national: 2 - old gas boiler | D45: BLR_DATA_NAT_2 | W45: TRUE | X45: TRUE | Y45: BLR_COND_NO | Z45: TRUE | AA45: BLR_FUEL_GAS | AB45: TRUE | AD45: TRUE
A46: Default national: 3 - new boiler | B46: Default national: 3 - new boiler | D46: BLR_DATA_NAT_3 | W46: TRUE | X46: TRUE | Y46: BLR_COND_NO | Z46: TRUE | AA46: BLR_FUEL_GAS | AB46: TRUE | AD46: TRUE
A47: Make 1 boiler 1 gas (catalogue) | B47: Make 1 boiler 1 gas (catalogue) | D47: BLR_DATA_CAT_01 | W47: TRUE | X47: TRUE | Y47: BLR_COND_NO | Z47: TRUE | AA47: BLR_FUEL_GAS | AB47: TRUE | AD47: TRUE
A48: NOT COMPATIBLE | B48: Make 1 boiler 2 oil (catalogue) | D48: BLR_DATA_CAT_02 | W48: FALSE | X48: TRUE | Y48: BLR_COND_NO | Z48: FALSE | AA48: BLR_FUEL_OIL | AB48: TRUE | AD48: TRUE
A49: Custom values | B49: Custom values | D49: BLR_DATA_USR | W49: TRUE | X49: TRUE | Y49: BLR_COND_NO | Z49: TRUE | AA49: BLR_FUEL_GAS | AB49: TRUE | AD49: TRUE
A52: System design data
A54: Localisation | C54: LOC | D54: =INDEX(D57:D60,C55) -> LOC_INT
C55: 1
A56: Values
A57: Heated space | D57: LOC_INT
A58: Unheated space | D58: LOC_UNH
A59: Boiler room | D59: LOC_BLR
A60: External | D60: LOC_EXT
A63: Operating conditions
A66: Direct connection
A67: Independent flow rate
A68: Heat exchanger
A69: Last option
A72: Description | C72: Variable TAG | D72: Option tag | E72: Symbol | F72: Unit | G72: Value | H72: Range | J72: =+D38 -> BLR_DATA_GAS_STD | K72: =+D39 -> BLR_DATA_GAS_LT | L72: =+D40 -> BLR_DATA_GAS_CND | M72: =+D41 -> BLR_DATA_OIL_STD | N72: =+D42 -> BLR_DATA_OIL_LT | O72: =+D43 -> BLR_DATA_OIL_CND | P72: =+D44 -> BLR_DATA_NAT_1 | Q72: =+D45 -> BLR_DATA_NAT_2 | R72: =+D46 -> BLR_DATA_NAT_3 | S72: =+D47 -> BLR_DATA_CAT_01 | T72: =+D48 -> BLR_DATA_CAT_02 | U72: =+D49 -> BLR_DATA_USR
A73: generator output at full load; | E73: ФPn | F73: kW | G73: =INDEX(J73:U73,1,$C$36) -> 60 | J73: =+$G$31 -> 60 | K73: 60 | L73: 60 | M73: 60 | N73: 60 | O73: 60 | P73: 60 | Q73: 60 | R73: 60 | S73: 45 | T73: 30 | U73: =+$G$31 -> 60
A74: Boiler type | G74: =INDEX(J74:U74,1,$C$36) -> BLR_COND_NO | J74: BLR_COND_NO | K74: BLR_COND_NO | L74: BLR_COND_YES | M74: BLR_COND_NO | N74: BLR_COND_NO | O74: BLR_COND_YES | P74: BLR_COND_NO | Q74: BLR_COND_NO | R74: BLR_COND_NO | S74: BLR_COND_NO | T74: BLR_COND_NO | U74: BLR_COND_YES
A75: Fuel type | G75: =INDEX(J75:U75,1,$C$36) -> BLR_FUEL_GAS | J75: BLR_FUEL_GAS | K75: BLR_FUEL_GAS | L75: BLR_FUEL_GAS | M75: BLR_FUEL_OIL | N75: BLR_FUEL_OIL | O75: BLR_FUEL_OIL | P75: BLR_FUEL_OIL | Q75: BLR_FUEL_GAS | R75: BLR_FUEL_GAS | S75: BLR_FUEL_GAS | T75: BLR_FUEL_OIL | U75: BLR_FUEL_GAS
A76: CE marking | G76: =INDEX(J76:U76,1,$C$36) -> BLR_CE_YES | J76: BLR_CE_YES | K76: BLR_CE_YES | L76: BLR_CE_YES | M76: BLR_CE_YES | N76: BLR_CE_YES | O76: BLR_CE_YES | P76: BLR_CE_YES | Q76: BLR_CE_YES | R76: BLR_CE_YES | S76: BLR_CE_YES | T76: BLR_CE_NO | U76: BLR_CE_YES
A77: Limited power | E77: ФPn,ltd | F77: kW | J77: =IF(J73>400,400,J73) -> 60 | K77: =IF(K73>400,400,K73) -> 60 | L77: 60 | M77: 60 | N77: 60 | O77: 60 | P77: 60 | Q77: 60 | R77: 60 | S77: 45 | T77: 30 | U77: 60
E78: C1 | F78: % | J78: 85 | K78: 88 | L78: 94 | M78: 85 | N78: 88 | O78: 94 | P78: 92 | Q78: 91 | R78: 93
E79: C2 | F79: % | J79: 2 | K79: 1.5 | L79: 1 | M79: 2 | N79: 1.5 | O79: 1 | P79: 0 | Q79: 0 | R79: 0
A80: generator efficiency at full load; | E80: ηgnr,Pn | F80: % | G80: =INDEX(J80:U80,1,$C$36) -> 90.66722688 | J80: =J78+J79*LOG10(J77) -> 88.5563025 | K80: =K78+K79*LOG10(K77) -> 90.66722688 | L80: 95.77815125 | M80: 88.5563025 | N80: 90.66722688 | O80: 95.77815125 | P80: 92 | Q80: 91 | R80: 93 | S80: 94 | T80: 92 | U80: 93
A81: generator output at intermediate load; | E81: ФPint | F81: kW | G81: =INDEX(J81:U81,1,$C$36) -> 18 | J81: =+J73*0.3 -> 18 | K81: =+K73*0.3 -> 18 | L81: 18 | M81: =+M73*0.3 -> 18 | N81: =+N73*0.3 -> 18 | O81: =+O73*0.3 -> 18 | P81: 18 | Q81: 18 | R81: 18 | S81: 13.5 | T81: 9 | U81: 18
E82: C3 | F82: % | J82: 81.5 | K82: 89 | L82: 98 | M82: 81.5 | N82: 89 | O82: =98/1.05 -> 93.33333333 | P82: 90 | Q82: 89 | R82: 91
E83: C4 | F83: % | J83: 3 | K83: 1.5 | L83: 1 | M83: 3 | N83: 1.5 | O83: =1/1.05 -> 0.9523809524 | P83: 0 | Q83: 0 | R83: 0
A84: generator efficiency at intermediate load; | E84: ηgnr,Pint | F84: % | G84: =INDEX(J84:U84,1,$C$36) -> 91.66722688 | J84: =J82+J83*LOG10(J77) -> 86.83445375 | K84: =K82+K83*LOG10(K77) -> 91.66722688 | L84: 99.77815125 | M84: 86.83445375 | N84: 91.66722688 | O84: 95.02681071 | P84: 90 | Q84: 89 | R84: 91 | S84: 94 | T84: 92 | U84: 93
E85: C5 | F85: % | J85: 8.5 | K85: 5 | L85: 4.8 | M85: 8.5 | N85: 5 | O85: 4.8 | P85: 5 | Q85: 5 | R85: 5
E86: C6 | F86: % | J86: -0.4 | K86: -0.35 | L86: -0.35 | M86: -0.4 | N86: -0.35 | O86: -0.35 | P86: -0.35 | Q86: -0.35 | R86: -0.35
A87: stand-by heat loss at test temperature difference Dθi,test; | E87: Фgnr,ls,P0 | F87: kW | G87: =INDEX(J87:U87,1,$C$36) -> 0.7157614713 | J87: =+J73*(J85/100)*(J73^J86) -> 0.9915387147 | K87: 0.7157614713 | L87: 0.6871310125 | M87: =+M73*(M85/100)*(M73^M86) -> 0.9915387147 | N87: =+N73*(N85/100)*(N73^N86) -> 0.7157614713 | O87: =+O73*(O85/100)*(O73^O86) -> 0.6871310125 | P87: 0.7157614713 | Q87: 0.7157614713 | R87: 0.7157614713 | S87: 0.5 | T87: 0.6 | U87: 0.4
E88: C7 | F88: W | J88: 0 | K88: 0 | L88: 0 | M88: 0 | N88: 0 | O88: 0 | P88: 0 | Q88: 0 | R88: 0
E89: C8 | F89: W | J89: 45 | K89: 45 | L89: 45 | M89: 45 | N89: 45 | O89: 45 | P89: 45 | Q89: 45 | R89: 45
E90: n | F90: - | J90: 0.48 | K90: 0.48 | L90: 0.48 | M90: 0.48 | N90: 0.48 | O90: 0.48 | P90: 0.48 | Q90: 0.48 | R90: 0.48
A91: power consumption of auxiliary devices at full load; | E91: Paux,gnr,Pn | F91: kW | G91: =INDEX(J91:U91,1,$C$36) -> 0.3211627101 | J91: =(+J88+J89*J73^J90)/1000 -> 0.3211627101 | K91: 0.3211627101 | L91: 0.3211627101 | M91: =(+M88+M89*M73^M90)/1000 -> 0.3211627101 | N91: =(+N88+N89*N73^N90)/1000 -> 0.3211627101 | O91: =(+O88+O89*O73^O90)/1000 -> 0.3211627101 | P91: 0.3211627101 | Q91: 0.3211627101 | R91: 0.3211627101 | S91: 0.3 | T91: 0.4 | U91: 0.6
E92: C7 | F92: W | J92: 0 | K92: 0 | L92: 0 | M92: 0 | N92: 0 | O92: 0 | P92: 0 | Q92: 0 | R92: 0
E93: C8 | F93: W | J93: 15 | K93: 15 | L93: 15 | M93: 15 | N93: 15 | O93: 15 | P93: 15 | Q93: 15 | R93: 15
E94: n | F94: - | J94: 0.48 | K94: 0.48 | L94: 0.48 | M94: 0.48 | N94: 0.48 | O94: 0.48 | P94: 0.48 | Q94: 0.48 | R94: 0.48
A95: power consumption of auxiliary devices at intermediate load; | E95: Paux,gnr,Pint | F95: kW | G95: =INDEX(J95:U95,1,$C$36) -> 0.06006508023 | J95: =(+J92+J93*J81^J94)/1000 -> 0.06006508023 | K95: 0.06006508023 | L95: 0.06006508023 | M95: =(+M92+M93*M81^M94)/1000 -> 0.06006508023 | N95: =(+N92+N93*N81^N94)/1000 -> 0.06006508023 | O95: =(+O92+O93*O81^O94)/1000 -> 0.06006508023 | P95: 0.06006508023 | Q95: 0.06006508023 | R95: 0.06006508023 | S95: 0.1 | T95: 0.07 | U95: 0.05
E96: C7 | F96: W | J96: 15 | K96: 15 | L96: 15 | M96: 15 | N96: 15 | O96: 15 | P96: 15 | Q96: 15 | R96: 15
E97: C8 | F97: W | J97: 0 | K97: 0 | L97: 0 | M97: 0 | N97: 0 | O97: 0 | P97: 0 | Q97: 0 | R97: 0
E98: n | F98: - | J98: 0 | K98: 0 | L98: 0 | M98: 0 | N98: 0 | O98: 0 | P98: 0 | Q98: 0 | R98: 0
A99: stand-by power consumption of auxiliary devices; | E99: Paux,gnr,P0 | F99: kW | G99: =INDEX(J99:U99,1,$C$36) -> 0.015 | J99: =(+J96+J97*J85^J98)/1000 -> 0.015 | K99: 0.015 | L99: 0.015 | M99: 0.015 | N99: 0.015 | O99: 0.015 | P99: 0.015 | Q99: 0.015 | R99: 0.015 | S99: 0 | T99: 0 | U99: 0
A100: auxiliary power when the generation system is inactive | E100: Paux,off | F100: kW | G100: =INDEX(J100:U100,1,$C$36) -> 0 | J100: 0 | K100: 0 | L100: 0 | M100: 0 | N100: 0 | O100: 0 | P100: 0 | Q100: 0 | R100: 0 | S100: 0 | T100: 0 | U100: 0
A101: minimum operating boiler temperature. | E101: θgnr,min | F101: °C | G101: =INDEX(J101:U101,1,$C$36) -> 30 | J101: 50 | K101: 30 | L101: 0 | M101: 50 | N101: 30 | O101: 0 | P101: 50 | Q101: 50 | R101: 50 | S101: 50 | T101: 50 | U101: 50
A102: Recoverable fraction of stand-by losses | E102: fgnr,env | F102: - | G102: =INDEX(J102:U102,1,$C$36) -> 0.5 | J102: 0.5 | K102: 0.5 | L102: 0.5 | M102: 0.5 | N102: 0.5 | O102: 0.5 | P102: 0.5 | Q102: 0.5 | R102: 0.5 | S102: 0.5 | T102: 0.5 | U102: 0.5
A104: correction factor of full-load efficiency; | E104: fcorr,Pn | F104: - | G104: =INDEX(J104:U104,1,$C$36) -> 0.04 | J104: 0.04 | K104: 0.04 | L104: 0.2 | M104: 0.04 | N104: 0.04 | O104: 0.2 | P104: 0.04 | Q104: 0.04 | R104: 0.1 | S104: 0.04 | T104: 0.04 | U104: 0.04
A105: correction factor of intermediate load efficiency; | E105: fcorr,Pint | F105: - | G105: =INDEX(J105:U105,1,$C$36) -> 0.05 | J105: 0.05 | K105: 0.05 | L105: 0.2 | M105: 0.05 | N105: 0.05 | O105: 0.2 | P105: 0.05 | Q105: 0.05 | R105: 0.05 | S105: 0.05 | T105: 0.05 | U105: 0.05
A107: generator average water temperature at test conditions for full load; | E107: θgnr,test,Pn | F107: °C | G107: =INDEX(J107:U107,1,$C$36) -> 70 | J107: 70 | K107: 70 | L107: 70 | M107: 70 | N107: 70 | O107: 70 | P107: 70 | Q107: 70 | R107: 70 | S107: 70 | T107: 70 | U107: 70
A108: generator average water temperature at test conditions for intermediate load; | E108: θgnr,test,Pint | F108: °C | G108: =INDEX(J108:U108,1,$C$36) -> 40 | J108: 50 | K108: 40 | L108: 30 | M108: 50 | N108: 40 | O108: 30 | P108: 50 | Q108: 50 | R108: 50 | S108: 50 | T108: 50 | U108: 50
A109: difference between mean boiler temperature and test room temperature in test conditions; | E109: Dθtest,P0 | F109: °C | G109: =INDEX(J109:U109,1,$C$36) -> 50 | J109: 50 | K109: 50 | L109: 50 | M109: 50 | N109: 50 | O109: 50 | P109: 50 | Q109: 50 | R109: 50 | S109: 50 | T109: 50 | U109: 50
A111: part of the auxiliary energy recovered | E111: frvd,aux | F111: - | G111: =INDEX(J111:U111,1,$C$36) -> 0.75 | J111: 0.75 | K111: 0.75 | L111: 0.75 | M111: 0.75 | N111: 0.75 | O111: 0.75 | P111: 0.75 | Q111: 0.75 | R111: 0.75 | S111: 0.75 | T111: 0.75 | U111: 0.75
A112: part of the nominal electrical power not transmitted to the distribution sub-system | E112: frbl,aux | F112: - | G112: =INDEX(J112:U112,1,$C$36) -> 0.25 | J112: 0.25 | K112: 0.25 | L112: 0.25 | M112: 0.25 | N112: 0.25 | O112: 0.25 | P112: 0.25 | Q112: 0.25 | R112: 0.25 | S112: 0.25 | T112: 0.25 | U112: 0.25
A117: System design data
A118: Installation room temperature; | E118: qi,brm | F118: °C | G118: 15
A119: Temperature reduction factor of install. room | E119: bbrm | F119: - | G119: 0.7

Sheet Simplified_input_correlation
A1: Create here a simulation of each correlation method in your Annex C
A4: Name | B4: Symbol | C4: Unit | D4: Value | E4: Range | F4: Formula ref. | G4: Formula | H4: Notes
A5: Input data
A6: Length of the building | B6: lL | C6: m | D6: 30 | E6: 4…100
A7: Width of the building | B7: lW | C7: m | D7: 20 | E7: 4…20
A8: Number of loors | B8: Nlev | C8: - | D8: 3 | E8: 1…10
A9: Floor heigth | B9: Hfl | C9: m | D9: 3.1 | E9: 2…5
A12: METHOD
A14: Detail all formulas
A15: Length of connection of radiators to vertical shafts | B15: lA | C15: m | D15: =0.55*Method_in*D7*D8 -> 990
A16: Length of vertical shafts | B16: lS | C16: m | D16: =0.025*Method_in*D7*D8*D9 -> 139.5
A17: Length of base collector | B17: lV | C17: m | D17: =2*Method_in+0.01625*Method_in*D7*D7 -> 255
A18: …
A20: Output data
A21: Length of shafts | B21: lS | C21: m | E21: 0...∞
A22: diameter of shafts | B22: dS | C22: m | E22: 0…0,2
A23: Length of base ring | B23: lB | C23: m | E23: 0...∞
A24: diameter of base ring | B24: dB | C24: m | E24: 0…0,2

Sheet Method_input _2
A1: All input data for the method shall be listed here. In the simplest version, values for data input in column D (both green and blue background) may be inserted manually. Varying data (green background) can be fed from the "input_series" sheet. In this sample data sheet, product data (blue background) is linked to a sample catalogue built in the "Detailed_input" sheet
A4: Name | B4: Symbol | C4: Unit | D4: Value | E4: Range | F4: Origin | G4: Varying | H4: Notes
A5: Operating conditions data
A6: heat output to the heat distribution sub-system(s); | B6: QH,gen,out | C6: kWh | D6: 28000 | E6: 0...∞ | F6: M3-6 | G6: YES
A7: calculation interval | B7: tci | C7: h | D7: 744 | E7: 0…8760 | F7: M1-9 | G7: Yes
A8: total time of generator(s) operation | B8: tgnr | C8: h | D8: 710 | E8: 0…8760 | F8: M1-6 | G8: Yes
A9: average water temperature in the boiler; | B9: qgnr,w,m | C9: °C | D9: 70 | E9: 0…100 | F9: M3-6 | G9: YES
A10: return water temperature to the boiler (for condensing boilers); | B10: qgnr,w,r | C10: °C | D10: 60 | E10: 0…100 | F10: M3-6 | G10: YES
A11: external temperature of the calculation interval | B11: qext | C11: °C | D11: 4 | E11: -50…+50 | F11: M1-13 | G11: YES
A15: Product data
A16: Product description data
A17: Condensing boiler | B17: BLR_COND | D17: =+Product_descriptive_data!C9 -> LRH_TYPE_AIR_MODUALL | E17: Y/N | F17: Local | G17: NO
A18: Fuel | B18: BLR_FUEL | D18: =+Product_descriptive_data!C34 -> LRH_FUEL_GAS | E18: List | F18: Local | G18: NO
A20: Product technical data
A21: generator output at full load; | B21: ФPn | C21: kW | D21: =+Product_tech_data!#REF! ->  | E21: 0...∞ | F21: Local | G21: NO
A22: generator efficiency at full load; | B22: ηgnr,Pn | C22: % | D22: =+Product_tech_data!D86 -> 99 | E22: 0…120% | F22: Local | G22: NO
A23: generator output at intermediate load; | B23: ФPint | C23: kW | D23: =+Product_tech_data!#REF! ->  | E23: 0...∞ | F23: Local | G23: NO
A24: generator efficiency at intermediate load; | B24: ηgnr,Pint | C24: % | D24: =+Product_tech_data!#REF! ->  | E24: 0…120% | F24: Local | G24: NO
A25: stand-by heat loss at test temperature difference Dθi,test; | B25: Фgnr,ls,P0 | C25: kW | D25: =+Data_catalogue_example!G87 -> 0.7157614713 | E25: 0...∞ | F25: Local | G25: NO
A26: power consumption of auxiliary devices at full load; | B26: Paux,gnr,Pn | C26: kW | D26: =+Product_tech_data!#REF!/1000 ->  | E26: 0...∞ | F26: Local | G26: NO
A27: power consumption of auxiliary devices at intermediate load; | B27: Paux,gnr,Pint | C27: kW | D27: =+Product_tech_data!#REF!/1000 ->  | E27: 0...∞ | F27: Local | G27: NO
A28: stand-by power consumption of auxiliary devices; | B28: Paux,gnr,P0 | C28: kW | D28: =+Product_tech_data!#REF!/1000 ->  | E28: 0...∞ | F28: Local | G28: NO
A29: auxiliary power when the generation system is inactive | B29: Paux,off | C29: kW | D29: =+Data_catalogue_example!G100 -> 0 | E29: 0...∞ | F29: Local | G29: NO
A30: minimum operating boiler temperature. | B30: θgnr,min | C30: °C | D30: =+Product_tech_data!#REF! ->  | E30: 0…100 | F30: Local | G30: NO
A31: Recoverable fraction of stand-by losses | B31: fgnr,env | C31: - | D31: =+Product_tech_data!#REF! ->  | E31: 0…1 | F31: Local | G31: NO
F32: Local
A33: correction factor of full-load efficiency; | B33: fcorr,Pn | C33: - | D33: =+Product_tech_data!#REF! ->  | E33: 0…1 | F33: Local | G33: NO
A34: correction factor of intermediate load efficiency; | B34: fcorr,Pint | C34: - | D34: =+Product_tech_data!#REF! ->  | E34: 0…1 | F34: Local | G34: NO
A36: generator average water temperature at test conditions for full load; | B36: θgnr,test,Pn | C36: °C | D36: =+Product_tech_data!#REF! ->  | E36: 0…100 | F36: Local | G36: NO
A37: generator average water temperature at test conditions for intermediate load; | B37: θgnr,test,Pint | C37: °C | D37: =+Product_tech_data!#REF! ->  | E37: 0…100 | F37: Local | G37: NO
A38: difference between mean boiler temperature and test room temperature in test conditions; | B38: Dθtest,P0 | C38: °C | D38: =+Product_tech_data!#REF! ->  | E38: 0…100 | F38: Local | G38: NO
F39: Local
A40: part of the auxiliary energy recovered | B40: frvd,aux | C40: - | D40: =+Product_tech_data!#REF! ->  | E40: 0…1 | F40: Local | G40: NO
A41: part of the nominal electrical power not transmitted to the distribution sub-system | B41: frbl,aux | C41: - | D41: =+Product_tech_data!#REF! ->  | E41: 0….1 | F41: Local | G41: NO
A43: System design data
A44: Process design
A45: boiler room temperature; | B45: qi,brm | C45: °C | D45: =+Process_design_data!#REF! ->  | E45: -50…+50 | F45: Local | G45: Yes
A46: Temperature reduction factor of boiler room | B46: bbrm | C46: - | D46: =+Process_design_data!#REF! ->  | E46: 0…1 | F46: Local | G46: NO
A49: Control type data
A50: Burner control type
